[Event "74th Superior Womens Argentine-ch 2023"]
[Site "Buenos Aires"]
[Date "2023.11.28"]
[Round "8.4"]
[White "Sarquis, Maria Belen"]
[Black "Adam, Ernestina"]
[Result "0-1"]
[ECO "B51"]
[WhiteElo "2194"]
[BlackElo "2036"]
[Annotator "RC"]
[PlyCount "116"]
[EventDate "2023.11.20"]
[EventType "swiss"]
[EventCountry "ARG"]
[SourceTitle "playchess.com"]
[Source "ChessBase"]
[SourceQuality "1"]
[TimeControl "5400+30"]

1. e4 {[%emt 0:00:13]} c5 {[%emt 0:00:29]} 2. Nf3 {[%emt 0:00:09]} d6 {[%emt 0:00:18]} 3. Bb5+ {[%emt 0:00:11]} Nd7 {[%emt 0:00:29]} 4. O-O {[%emt 0:00:20]} a6 {[%emt 0:01:04]} 5. Bd3 {[%emt 0:00:11]} b5 {[%emt 0:01:50]} 6. a4 {[%emt 0:09:19]} b4 {[%emt 0:09:07]} 7. c3 {[%emt 0:02:21]} Ngf6 {[%emt 0:03:09]} 8. Bc2 {[%emt 0:06:06]} Bb7 {[%emt 0:04:01]} 9. Re1 {[%emt 0:01:20]} e6 {[%emt 0:02:50]} 10. d4 {[%emt 0:02:12]} cxd4 {[%emt 0:06:16]} 11. cxd4 {[%emt 0:00:22]} a5 {[%emt 0:03:05]} 12. Nbd2 {[%emt 0:03:36]} Be7 {[%emt 0:02:47]} 13. e5 {[%emt 0:05:45]} dxe5 {[%emt 0:02:43]} 14. dxe5 {[%emt 0:00:16]} Nd5 {[%emt 0:01:20]} 15. Ne4 {[%emt 0:02:50]} Qc7 {[%emt 0:04:22]} 16. Ng3 {[%emt 0:08:22]} Rc8 {[%emt 0:09:00]} 17. Bd3 {[%emt 0:00:51]} h6 {[%emt 0:06:32]} 18. h4 {[%emt 0:05:09]} Qb6 {[%emt 0:08:15]} 19. Nh5 {[%emt 0:10:45]} Kf8 {[%emt 0:04:35]} 20. Nf4 {[%emt 0:07:07]} Nc5 {[%emt 0:05:32]} 21. Bc4 {[%emt 0:06:22]} Nxf4 {[%emt 0:04:22]} 22. Bxf4 {[%emt 0:00:07]} Ne4 {[%emt 0:01:13]} 23. Be3 {[%emt 0:00:51]} Bc5 {[%emt 0:01:22]} 24. Rc1 {[%emt 0:01:32]} Ke7 {[%emt 0:06:26]} 25. Bb5 {[%emt 0:05:10]} Rhd8 {[%emt 0:01:45]} 26. Bxc5+ {[%emt 0:01:06]} Nxc5 {[%emt 0:01:18]} 27. Qe2 {[%emt 0:01:06]} Bc6 {[%emt 0:00:55]} 28. Bxc6 {[%emt 0:04:24]} Qxc6 {[%emt 0:00:50]} 29. Qc2 {[%emt 0:02:28]} Qb6 {[%emt 0:00:34]} 30. Qh7 {[%emt 0:04:20]} Nd3 {[%emt 0:06:39]} 31. Rxc8 {[%emt 0:00:19]} Qxf2+ {[%emt 0:00:19]} 32. Kh1 {[%emt 0:00:46]} Nxe1 {[%emt 0:00:41]} 33. Rc7+ {[%emt 0:00:23]} Rd7 {[%emt 0:00:01]} 34. Rxd7+ {[%emt 0:00:30]} Kxd7 {[%emt 0:00:01]} 35. Qxg7 {[%emt 0:00:12]} Qf1+ {[%emt 0:00:26]} 36. Ng1 {[%emt 0:01:12]} Nd3 {[%emt 0:01:58]} 37. Qf8 {[%emt 0:02:42]} Nxe5 {[%emt 0:01:36]} 38. Qxh6 {[%emt 0:00:18]} Qf2 {[%emt 0:00:40]} 39. Qg5 {[%emt 0:05:28]} Qxb2 {[%emt 0:00:22]} 40. h5 {[%emt 0:00:49]} b3 {[%emt 0:00:37]} 41. h6 {[%emt 0:00:08]} Ng6 {[%emt 0:00:35]} 42. Nf3 {[%emt 0:00:50]} Qc3 {[%emt 0:00:05]} 43. h7 {[%emt 0:00:23]} b2 {[%emt 0:00:49]} 44. Qb5+ {[%emt 0:01:44]} Ke7 {[%emt 0:00:19]} 45. Kh2 {[%emt 0:01:18]} Qc1 {[%emt 0:00:40]} 46. Nh4 {[%emt 0:00:32]} Qf4+ {[%emt 0:00:37]} 47. g3 {[%emt 0:00:22]} Qd2+ {[%emt 0:00:26]} 48. Kh3 {[%emt 0:00:33]} Nxh4 {[%emt 0:00:35]} 49. Qb7+ {[%emt 0:00:30]} Qd7 {[%emt 0:00:26]} 50. Qxb2 {[%emt 0:00:58]} Ng6 {[%emt 0:00:16]} 51. h8=Q {[%emt 0:00:31]} Nxh8 {[%emt 0:00:04]} 52. Qxh8 {[%emt 0:00:04]} Qxa4 {[%emt 0:00:08]} 53. Qe5 {[%emt 0:00:09]} Kd7 {[%emt 0:01:28]} 54. Qf6 {[%emt 0:00:11]} Ke8 {[%emt 0:00:17]} 55. Qh8+ {[%emt 0:00:08]} Ke7 {[%emt 0:00:02]} 56. Qh5 {[%emt 0:00:08]} Qb4 {[%emt 0:00:47]} 57. Qg5+ {[%emt 0:00:05]} Kd7 {[%emt 0:00:15]} 58. Qh5 {[%emt 0:00:23]} Ke8 {[%emt 0:00:26]} 0-1

[Event "74th Superior Womens Argentine-ch 2023"]
[Site "Buenos Aires"]
[Date "2023.11.28"]
[Round "8.5"]
[White "Gaite, Karen Nerina"]
[Black "Herrera, Lara"]
[Result "1-0"]
[ECO "A29"]
[WhiteElo "1871"]
[BlackElo "1391"]
[Annotator "NA RC"]
[PlyCount "133"]
[EventDate "2023.11.20"]
[EventType "swiss"]
[EventCountry "ARG"]
[SourceTitle "playchess.com"]
[Source "ChessBase"]
[SourceQuality "1"]
[TimeControl "5400+30"]

1. c4 {[%emt 0:00:13]} e5 {[%emt 0:00:13]} 2. Nc3 {[%emt 0:00:07]} Nf6 {[%emt 0:00:12]} 3. g3 {[%emt 0:00:17]} d5 {[%emt 0:00:15]} 4. cxd5 {[%emt 0:00:25]} Nxd5 {[%emt 0:00:09]} 5. Bg2 {[%emt 0:00:06]} Nb6 {[%emt 0:00:19]} 6. Nf3 {[%emt 0:01:06]} Nc6 {[%emt 0:00:06]} 7. O-O {[%emt 0:00:16]} Be7 {[%emt 0:00:14]} 8. b3 {[%emt 0:01:23]} O-O {[%emt 0:00:19]} 9. Bb2 {[%emt 0:00:10]} Be6 {[%emt 0:00:29]} 10. d3 {[%emt 0:00:31]} f6 $11 {[%emt 0:01:16]} 11. Rc1 {[%emt 0:01:29]} Qd7 {[%emt 0:00:57]} 12. Ne4 {[%emt 0:05:34]} Bh3 {[%emt 0:04:53]} 13. a3 {[%emt 0:03:26]} Rad8 {[%emt 0:06:00]} 14. Qc2 {[%emt 0:04:41]} Bxg2 {[%emt 0:18:22]} 15. Kxg2 {[%emt 0:00:18]} Nd5 {[%emt 0:00:22]} 16. h3 {[%emt 0:11:57]} b6 {[%emt 0:00:28]} 17. Qxc6 {[%emt 0:00:46]} Qf5 {[%emt 0:01:17]} 18. Nc3 {[%emt 0:04:31]} Nxc3 {[%emt 0:06:35]} 19. Rxc3 {[%emt 0:01:51]} Bd6 {[%emt 0:00:43]} 20. Qe4 {[%emt 0:01:49]} Qxe4 {[%emt 0:01:30]} 21. dxe4 {[%emt 0:00:07]} a5 {[%emt 0:00:21]} 22. Rd1 {[%emt 0:00:35]} Bc5 {[%emt 0:01:00]} 23. Rcd3 {[%emt 0:00:27]} Rd6 {[%emt 0:01:38]} 24. Ne1 {[%emt 0:01:30]} b5 {[%emt 0:08:17]} 25. Rxd6 {[%emt 0:01:54]} cxd6 {[%emt 0:00:11]} 26. Nd3 {[%emt 0:00:54]} Bb6 {[%emt 0:00:24]} 27. Rc1 {[%emt 0:00:16]} f5 {[%emt 0:03:56]} 28. exf5 {[%emt 0:01:33]} e4 {[%emt 0:05:19]} 29. Nf4 {[%emt 0:00:24]} Rxf5 {[%emt 0:15:52]} 30. e3 {[%emt 0:01:02]} g5 {[%emt 0:03:15]} 31. Ne6 {[%emt 0:03:11]} Kf7 {[%emt 0:05:04]} 32. Nd4 {[%emt 0:01:22]} Rd5 {[%emt 0:01:59]} 33. Rc6 {[%emt 0:01:49]} Bd8 {[%emt 0:00:30]} 34. Rc8 {[%emt 0:01:51]} Bf6 {[%emt 0:01:10]} 35. Rc7+ {[%emt 0:00:49]} Kg6 {[%emt 0:00:22]} 36. Bc3 {[%emt 0:01:37]} b4 {[%emt 0:01:03]} 37. axb4 {[%emt 0:00:23]} axb4 {[%emt 0:00:09]} 38. Bxb4 {[%emt 0:00:25]} Bxd4 {[%emt 0:00:09]} 39. exd4 {[%emt 0:00:06]} Rxd4 {[%emt 0:00:26]} 40. Rc4 {[%emt 0:00:58]} Rd3 {[%emt 0:01:09]} 41. Rxe4 {[%emt 0:00:33]} Rxb3 {[%emt 0:00:12]} 42. Bxd6 {[%emt 0:00:06]} Rd3 {[%emt 0:00:11]} 43. Bc5 {[%emt 0:00:59]} Rd5 {[%emt 0:00:15]} 44. Be3 {[%emt 0:00:08]} Rb5 {[%emt 0:03:48]} 45. g4 {[%emt 0:01:22]} Rb2 {[%emt 0:00:35]} 46. Re6+ {[%emt 0:01:42]} Kf7 {[%emt 0:00:39]} 47. Rh6 {[%emt 0:00:32]} Rb5 {[%emt 0:00:40]} 48. Rxh7+ {[%emt 0:00:15]} Kg6 {[%emt 0:00:09]} 49. Rh5 {[%emt 0:00:21]} Re5 {[%emt 0:00:16]} 50. h4 {[%emt 0:00:16]} Re4 {[%emt 0:00:26]} 51. Rxg5+ {[%emt 0:00:14]} Kf6 {[%emt 0:00:08]} 52. h5 {[%emt 0:00:26]} Re7 {[%emt 0:00:31]} 53. Rg6+ {[%emt 0:00:37]} Kf7 {[%emt 0:00:24]} 54. Kg3 {[%emt 0:00:37]} Re8 {[%emt 0:00:10]} 55. g5 {[%emt 0:00:00]} Rh8 {[%emt 0:00:22]} 56. Rf6+ {[%emt 0:00:00]} Ke7 {[%emt 0:00:13]} 57. h6 {[%emt 0:00:07]} Rg8 {[%emt 0:00:34]} 58. h7 {[%emt 0:00:17]} Rh8 {[%emt 0:00:04]} 59. Rb6 {[%emt 0:00:12]} Kd7 {[%emt 0:01:05]} 60. g6 {[%emt 0:00:07]} Kc7 {[%emt 0:00:08]} 61. Rf6 {[%emt 0:00:17]} Kd7 {[%emt 0:00:18]} 62. g7 {[%emt 0:00:24]} Rxh7 {[%emt 0:00:23]} 63. g8=Q {[%emt 0:00:12]} Re7 {[%emt 0:00:08]} 64. Qd5+ {[%emt 0:00:17]} Ke8 {[%emt 0:00:22]} 65. Qc6+ {[%emt 0:00:33]} Rd7 {[%emt 0:00:25]} 66. Qc8+ {[%emt 0:00:14]} Rd8 {[%emt 0:00:23]} 67. Qe6# {[%emt 0:00:08]} 1-0

[Event "74th Superior Womens Argentine-ch 2023"]
[Site "Buenos Aires"]
[Date "2023.11.28"]
[Round "9.1"]
[White "Campos, Maria Jose"]
[Black "Borda Rodas, Anapaola S."]
[Result "1-0"]
[ECO "A13"]
[WhiteElo "2208"]
[BlackElo "2261"]
[Annotator "RC"]
[PlyCount "105"]
[EventDate "2023.11.20"]
[EventType "swiss"]
[EventCountry "ARG"]
[SourceTitle "playchess.com"]
[Source "ChessBase"]
[SourceQuality "1"]
[TimeControl "5400+30"]

1. c4 {[%emt 1:31:00]} e6 {[%emt 0:01:34]} 2. g3 {[%emt 0:00:00]} d5 {[%emt 0:00:20]} 3. Nf3 {[%emt 0:00:00]} d4 {[%emt 0:00:37]} 4. Bg2 {[%emt 0:00:00]} Nc6 {[%emt 0:00:17]} 5. O-O {[%emt 0:00:00]} Bc5 {[%emt 0:00:20]} 6. d3 {[%emt 0:00:00]} Nf6 {[%emt 0:00:09]} 7. Nbd2 {[%emt 0:00:00]} O-O {[%emt 0:00:45]} 8. Nb3 {[%emt 0:00:00]} Be7 {[%emt 0:00:08]} 9. e3 {[%emt 0:00:00]} dxe3 {[%emt 0:00:22]} 10. Bxe3 {[%emt 0:00:00]} Ng4 {[%emt 0:02:00]} 11. Bc5 {[%emt 0:00:00]} Bxc5 {[%emt 0:05:39]} 12. Nxc5 {[%emt 0:00:00]} b6 {[%emt 0:00:30]} 13. Nb3 {[%emt 0:00:00]} Bb7 {[%emt 0:02:21]} 14. Qe2 {[%emt 0:00:00]} a5 {[%emt 0:07:30]} 15. Rad1 {[%emt 0:00:00]} a4 {[%emt 0:04:10]} 16. Na1 {[%emt 0:00:00]} a3 {[%emt 0:06:40]} 17. b3 {[%emt 0:00:00]} Nb4 {[%emt 0:03:13]} 18. d4 {[%emt 0:00:00]} Ra5 {[%emt 0:01:52]} 19. Qd2 {[%emt 0:00:00]} Qf6 {[%emt 0:12:42]} 20. d5 {[%emt 0:00:00]} c5 {[%emt 0:06:57]} 21. h3 {[%emt 0:00:00]} Nh6 {[%emt 0:06:28]} 22. g4 {[%emt 0:00:00]} Qd8 {[%emt 0:05:20]} 23. Ne5 {[%emt 0:00:00]} f6 {[%emt 0:04:59]} 24. Nd3 {[%emt 0:00:00]} Nxd3 {[%emt 0:07:43]} 25. Qxd3 {[%emt 0:00:00]} exd5 {[%emt 0:00:31]} 26. Bxd5+ {[%emt 0:00:00]} Bxd5 {[%emt 0:00:41]} 27. Qxd5+ {[%emt 0:00:00]} Qxd5 {[%emt 0:00:48]} 28. Rxd5 {[%emt 0:00:00]} Re8 {[%emt 0:00:23]} 29. Nc2 {[%emt 0:00:00]} Re2 {[%emt 0:01:50]} 30. Rc1 {[%emt 0:00:00]} Ra8 {[%emt 0:00:21]} 31. Rd6 {[%emt 0:00:00]} Nf7 {[%emt 0:00:46]} 32. Rxb6 {[%emt 0:00:00]} Ng5 {[%emt 0:01:17]} 33. Kg2 {[%emt 0:00:00]} Rd2 {[%emt 0:02:19]} 34. b4 {[%emt 0:01:28]} Ne4 {[%emt 0:01:14]} 35. bxc5 {[%emt 0:02:06]} Nxf2 {[%emt 0:02:11]} 36. Kf3 {[%emt 0:03:42]} Nxh3 {[%emt 0:00:45]} 37. Rd6 {[%emt 0:01:40]} Ng5+ {[%emt 0:01:40]} 38. Ke3 {[%emt 0:01:08]} Rh2 {[%emt 0:00:39]} 39. c6 {[%emt 0:04:57]} Re8+ {[%emt 0:00:36]} 40. Kd3 {[%emt 0:01:23]} Nf7 {[%emt 0:04:00]} 41. c5 {[%emt 0:00:33]} Ne5+ {[%emt 0:01:54]} 42. Kd4 {[%emt 0:01:21]} Rd2+ {[%emt 0:03:24]} 43. Kc3 {[%emt 0:00:03]} Rxd6 {[%emt 0:00:21]} 44. cxd6 {[%emt 0:00:04]} Nxc6 {[%emt 0:00:05]} 45. Nxa3 {[%emt 0:01:39]} Ne5 {[%emt 0:00:14]} 46. Kd4 {[%emt 0:00:28]} Ra8 {[%emt 0:01:24]} 47. Nc4 {[%emt 0:00:48]} Nxc4 {[%emt 0:02:49]} 48. Rxc4 {[%emt 0:00:15]} Rxa2 {[%emt 0:00:08]} 49. Kd5 {[%emt 0:00:18]} Rd2+ {[%emt 0:00:43]} 50. Kc6 {[%emt 0:00:52]} g5 {[%emt 0:01:16]} 51. d7 {[%emt 0:00:12]} h5 {[%emt 0:00:19]} 52. gxh5 {[%emt 0:00:10]} f5 {[%emt 0:00:31]} 53. Rc5 {[%emt 0:00:08]} 1-0

[Event "74th Superior Womens Argentine-ch 2023"]
[Site "Buenos Aires"]
[Date "2023.11.28"]
[Round "9.2"]
[White "Brizzi, Milagros Tatiana"]
[Black "Gaite, Karen Nerina"]
[Result "1/2-1/2"]
[ECO "C78"]
[WhiteElo "2076"]
[BlackElo "1871"]
[Annotator "RC"]
[PlyCount "167"]
[EventDate "2023.11.20"]
[EventType "swiss"]
[EventCountry "ARG"]
[SourceTitle "playchess.com"]
[Source "ChessBase"]
[SourceQuality "1"]
[TimeControl "5400+30"]

1. e4 {[%emt 0:00:17]} e5 {[%emt 0:00:10]} 2. Nf3 {[%emt 0:00:20]} Nc6 {[%emt 0:00:08]} 3. Bb5 {[%emt 0:00:37]} a6 {[%emt 0:00:57]} 4. Ba4 {[%emt 0:00:44]} Nf6 {[%emt 0:00:16]} 5. O-O {[%emt 0:01:01]} b5 {[%emt 0:00:21]} 6. Bb3 {[%emt 0:00:32]} Bc5 {[%emt 0:00:17]} 7. c3 {[%emt 0:01:26]} d6 {[%emt 0:00:57]} 8. d4 {[%emt 0:01:20]} Bb6 {[%emt 0:02:51]} 9. Be3 {[%emt 0:02:35]} O-O {[%emt 0:02:43]} 10. Nbd2 {[%emt 0:03:21]} Bg4 {[%emt 0:08:13]} 11. h3 {[%emt 0:02:16]} Bh5 {[%emt 0:03:59]} 12. dxe5 {[%emt 0:02:16]} dxe5 {[%emt 0:05:20]} 13. Bxb6 {[%emt 0:00:47]} cxb6 {[%emt 0:00:08]} 14. Qe2 {[%emt 0:01:15]} Qe7 {[%emt 0:00:51]} 15. Bd5 {[%emt 0:03:02]} Rfc8 {[%emt 0:07:33]} 16. a4 {[%emt 0:11:44]} b4 {[%emt 0:06:12]} 17. g4 {[%emt 0:06:45]} Bg6 {[%emt 0:05:21]} 18. Nc4 {[%emt 0:05:04]} Rab8 {[%emt 0:07:30]} 19. Bxc6 {[%emt 0:09:16]} Rxc6 {[%emt 0:06:38]} 20. Ncxe5 {[%emt 0:00:24]} Re6 {[%emt 0:00:29]} 21. Nxg6 {[%emt 0:01:51]} hxg6 {[%emt 0:02:04]} 22. Ng5 {[%emt 0:12:13]} Rc6 {[%emt 0:04:10]} 23. Rac1 {[%emt 0:08:30]} bxc3 {[%emt 0:06:11]} 24. bxc3 {[%emt 0:03:02]} Nd5 {[%emt 0:04:24]} 25. Qd2 {[%emt 0:05:42]} Nxc3 {[%emt 0:05:47]} 26. Nxf7 {[%emt 0:01:53]} Nxe4 {[%emt 0:04:34]} 27. Qd5 {[%emt 0:00:40]} Rxc1 {[%emt 0:00:33]} 28. Ne5+ {[%emt 0:00:36]} Kh7 {[%emt 0:01:05]} 29. Rxc1 {[%emt 0:00:28]} Nf6 {[%emt 0:01:29]} 30. Qd4 {[%emt 0:01:22]} Re8 {[%emt 0:02:22]} 31. Nf3 {[%emt 0:01:14]} b5 {[%emt 0:02:13]} 32. axb5 {[%emt 0:01:52]} axb5 {[%emt 0:00:06]} 33. Ng5+ {[%emt 0:00:04]} Kh8 {[%emt 0:02:53]} 34. Qd3 {[%emt 0:00:16]} Nxg4 {[%emt 0:02:28]} 35. Qxg6 {[%emt 0:01:44]} Nf6 {[%emt 0:00:10]} 36. Rc6 {[%emt 0:03:03]} Rf8 {[%emt 0:01:25]} 37. Ne6 {[%emt 0:01:00]} Rg8 {[%emt 0:01:56]} 38. Qg5 {[%emt 0:04:30]} Qe8 {[%emt 0:01:06]} 39. Rd6 {[%emt 0:03:30]} Qh5 {[%emt 0:01:18]} 40. Qxh5+ {[%emt 0:00:58]} Nxh5 {[%emt 0:00:03]} 41. Rd5 {[%emt 0:00:08]} g6 {[%emt 0:00:59]} 42. Rxb5 {[%emt 0:00:06]} Kh7 {[%emt 0:00:14]} 43. Rb7+ {[%emt 0:00:34]} Kh6 {[%emt 0:00:10]} 44. h4 {[%emt 0:00:47]} Nf6 {[%emt 0:02:00]} 45. Rf7 {[%emt 0:00:25]} Nh7 {[%emt 0:00:42]} 46. Kg2 {[%emt 0:01:04]} Re8 {[%emt 0:00:57]} 47. Nd4 {[%emt 0:00:47]} Re4 {[%emt 0:00:28]} 48. Nf3 {[%emt 0:00:09]} Rg4+ {[%emt 0:00:49]} 49. Kh3 {[%emt 0:00:06]} Ra4 {[%emt 0:00:05]} 50. Ne5 {[%emt 0:00:53]} g5 {[%emt 0:01:16]} 51. Rxh7+ {[%emt 0:00:36]} Kxh7 {[%emt 0:00:02]} 52. hxg5 {[%emt 0:00:05]} Re4 {[%emt 0:00:58]} 53. Nf3 {[%emt 0:01:06]} Kg6 {[%emt 0:00:21]} 54. Kg3 {[%emt 0:00:31]} Ra4 {[%emt 0:00:21]} 55. Kg2 {[%emt 0:00:30]} Rf4 {[%emt 0:00:23]} 56. Kg3 {[%emt 0:00:25]} Ra4 {[%emt 0:00:10]} 57. Kh3 {[%emt 0:00:39]} Rf4 {[%emt 0:00:36]} 58. Kg2 {[%emt 0:00:08]} Rg4+ {[%emt 0:01:03]} 59. Kf1 {[%emt 0:00:15]} Rxg5 {[%emt 0:00:26]} 60. Ke2 {[%emt 0:00:44]} Ra5 {[%emt 0:00:19]} 61. Ke3 {[%emt 0:00:17]} Ra2 {[%emt 0:00:30]} 62. Nd2 {[%emt 0:01:04]} Rxd2 {[%emt 0:00:33]} 63. Kxd2 {[%emt 0:00:02]} Kf5 {[%emt 0:00:06]} 64. Ke3 {[%emt 0:00:10]} Ke5 {[%emt 0:00:25]} 65. Kf3 {[%emt 0:00:12]} Kf5 {[%emt 0:00:04]} 66. Kg3 {[%emt 0:00:14]} Kg5 {[%emt 0:00:07]} 67. Kf3 {[%emt 0:00:05]} Kf5 {[%emt 0:00:04]} 68. Ke2 {[%emt 0:00:06]} Kf4 {[%emt 0:00:09]} 69. f3 {[%emt 0:00:05]} Kf5 {[%emt 0:00:05]} 70. Kf2 {[%emt 0:00:06]} Kf4 {[%emt 0:00:07]} 71. Kg2 {[%emt 0:00:04]} Kf5 {[%emt 0:00:04]} 72. Kg3 {[%emt 0:00:04]} Kg5 {[%emt 0:00:04]} 73. f4+ {[%emt 0:00:07]} Kf6 {[%emt 0:00:10]} 74. Kg4 {[%emt 0:00:09]} Kg6 {[%emt 0:00:05]} 75. f5+ {[%emt 0:00:06]} Kf7 {[%emt 0:00:11]} 76. Kf4 {[%emt 0:00:05]} Kf6 {[%emt 0:00:05]} 77. Ke4 {[%emt 0:00:04]} Kf7 {[%emt 0:00:07]} 78. Ke5 {[%emt 0:00:09]} Ke7 {[%emt 0:00:12]} 79. f6+ {[%emt 0:00:04]} Kf8 {[%emt 0:00:08]} 80. Kf5 {[%emt 0:00:09]} Kf7 {[%emt 0:00:05]} 81. Kg5 {[%emt 0:00:07]} Kf8 {[%emt 0:00:19]} 82. Kg6 {[%emt 0:00:12]} Kg8 {[%emt 0:00:07]} 83. f7+ {[%emt 0:00:07]} Kf8 {[%emt 0:00:05]} 84. Kf6 {[%emt 0:09:14]} 1/2-1/2

[Event "74th Superior Womens Argentine-ch 2023"]
[Site "Buenos Aires"]
[Date "2023.11.28"]
[Round "9.3"]
[White "Flores Mirabal, Nancy"]
[Black "Sarquis, Maria Belen"]
[Result "1-0"]
[ECO "B20"]
[WhiteElo "1937"]
[BlackElo "2194"]
[Annotator "RC"]
[PlyCount "57"]
[EventDate "2023.11.20"]
[EventType "swiss"]
[EventCountry "ARG"]
[SourceTitle "playchess.com"]
[Source "ChessBase"]
[SourceQuality "1"]
[TimeControl "5400+30"]

1. e4 {[%emt 0:00:05]} c5 {[%emt 0:01:47]} 2. c4 {[%emt 0:02:36]} Nc6 {[%emt 0:01:21]} 3. g3 {[%emt 0:01:09]} g6 {[%emt 0:02:00]} 4. Bg2 {[%emt 0:01:01]} Bg7 {[%emt 0:00:09]} 5. Ne2 {[%emt 0:00:20]} h5 {[%emt 0:03:31]} 6. h3 {[%emt 0:02:25]} e5 {[%emt 0:04:55]} 7. d3 {[%emt 0:01:08]} d6 {[%emt 0:01:53]} 8. Nbc3 {[%emt 0:03:46]} Be6 {[%emt 0:09:43]} 9. Be3 {[%emt 0:02:02]} Qd7 {[%emt 0:01:35]} 10. Qd2 {[%emt 0:00:39]} O-O-O {[%emt 0:03:49]} 11. Nd5 {[%emt 0:01:27]} f5 {[%emt 0:02:33]} 12. Rb1 {[%emt 0:02:57]} h4 {[%emt 0:02:43]} 13. b4 {[%emt 0:06:40]} hxg3 {[%emt 0:02:35]} 14. b5 {[%emt 0:04:04]} gxf2+ {[%emt 0:04:45]} 15. Bxf2 {[%emt 0:00:09]} Bxd5 {[%emt 0:00:35]} 16. cxd5 {[%emt 0:03:13]} Nd4 {[%emt 0:01:37]} 17. b6 {[%emt 0:02:15]} a6 {[%emt 0:00:54]} 18. Qa5 {[%emt 0:07:53]} Ne7 {[%emt 0:04:15]} 19. Nc3 {[%emt 0:02:06]} Bf6 {[%emt 0:06:27]} 20. Bxd4 {[%emt 0:04:56]} exd4 {[%emt 0:03:44]} 21. Nb5 {[%emt 0:00:54]} Kb8 {[%emt 0:01:29]} 22. Nc7 {[%emt 0:00:20]} Rc8 {[%emt 0:13:31]} 23. O-O {[%emt 0:14:48]} Bg5 {[%emt 0:07:13]} 24. e5 {[%emt 0:11:02]} Ng8 {[%emt 0:03:07]} 25. Nxa6+ {[%emt 0:02:40]} bxa6 {[%emt 0:00:06]} 26. b7 {[%emt 0:00:19]} Rc7 {[%emt 0:00:58]} 27. Rb6 {[%emt 0:01:39]} Be3+ {[%emt 0:00:47]} 28. Kh2 {[%emt 0:00:15]} Rxb7 {[%emt 0:02:16]} 29. Rfb1 {[%emt 0:00:33]} 1-0

[Event "74th Superior Womens Argentine-ch 2023"]
[Site "Buenos Aires"]
[Date "2023.11.28"]
[Round "9.4"]
[White "Adam, Ernestina"]
[Black "Zuriel, Marisa"]
[Result "0-1"]
[ECO "B94"]
[WhiteElo "2036"]
[BlackElo "2165"]
[Annotator "RC"]
[PlyCount "126"]
[EventDate "2023.11.20"]
[EventType "swiss"]
[EventCountry "ARG"]
[SourceTitle "playchess.com"]
[Source "ChessBase"]
[SourceQuality "1"]
[TimeControl "5400+30"]

1. e4 {[%emt 0:00:04]} c5 {[%emt 0:00:10]} 2. Nf3 {[%emt 0:00:25]} d6 {[%emt 0:00:06]} 3. d4 {[%emt 0:00:26]} cxd4 {[%emt 0:00:07]} 4. Nxd4 {[%emt 0:00:15]} Nf6 {[%emt 0:00:07]} 5. Nc3 {[%emt 0:00:26]} a6 {[%emt 0:00:46]} 6. Bg5 {[%emt 0:00:50]} Nbd7 {[%emt 0:00:18]} 7. Qe2 {[%emt 0:01:10]} Qc7 {[%emt 0:03:14]} 8. O-O-O {[%emt 0:02:09]} g6 {[%emt 0:16:05]} 9. f4 {[%emt 0:04:07]} e5 {[%emt 0:05:21]} 10. Nf3 {[%emt 0:04:30]} h6 {[%emt 0:00:48]} 11. Bxf6 {[%emt 0:04:33]} Nxf6 {[%emt 0:00:05]} 12. g3 {[%emt 0:01:41]} Bg7 {[%emt 0:04:54]} 13. Qd2 {[%emt 0:05:20]} Bg4 {[%emt 0:04:27]} 14. Be2 {[%emt 0:00:19]} O-O-O {[%emt 0:00:36]} 15. Kb1 {[%emt 0:07:44]} Kb8 {[%emt 0:00:48]} 16. h3 {[%emt 1:04:31]} Be6 {[%emt 1:00:38]} 17. Qe3 {[%emt 0:00:30]} Rc8 {[%emt 0:00:30]} 18. Rd2 {[%emt 0:00:30]} Qa5 {[%emt 0:00:30]} 19. a3 {[%emt 0:00:30]} Rxc3 {[%emt 0:00:30]} 20. Qxc3 {[%emt 0:00:30]} Qxc3 {[%emt 0:00:00]} 21. bxc3 {[%emt 0:00:30]} Nxe4 {[%emt 0:01:00]} 22. Kc1 {[%emt 0:00:00]} Nxd2 {[%emt 0:00:00]} 23. Kxd2 {[%emt 0:01:00]} Rc8 {[%emt 0:01:00]} 24. fxe5 {[%emt 0:00:30]} dxe5 {[%emt 0:00:30]} 25. g4 {[%emt 0:00:00]} Rc5 {[%emt 0:00:00]} 26. Re1 {[%emt 0:00:00]} Ra5 {[%emt 0:00:00]} 27. Bd3 {[%emt 0:00:00]} Kc7 {[%emt 0:00:00]} 28. Re3 {[%emt 0:00:00]} Kd6 {[%emt 0:00:00]} 29. Be4 {[%emt 0:00:00]} b6 {[%emt 0:00:00]} 30. Rd3+ {[%emt 0:00:00]} Kc7 {[%emt 0:00:00]} 31. Nh4 {[%emt 0:02:23]} Bf6 {[%emt 0:00:00]} 32. Nf3 {[%emt 0:00:33]} Bc4 {[%emt 0:00:00]} 33. Re3 {[%emt 0:00:17]} Rxa3 {[%emt 0:00:00]} 34. h4 {[%emt 0:00:27]} Ra5 {[%emt 0:00:00]} 35. g5 {[%emt 0:00:38]} hxg5 {[%emt 0:00:00]} 36. hxg5 {[%emt 0:00:01]} Be7 {[%emt 0:00:00]} 37. Re1 {[%emt 0:00:55]} Kd6 {[%emt 0:00:00]} 38. Rh1 {[%emt 0:00:58]} Bd5 {[%emt 0:00:00]} 39. Ke3 {[%emt 0:00:41]} Bxe4 {[%emt 0:00:11]} 40. Kxe4 {[%emt 0:00:01]} Ra4+ {[%emt 0:00:04]} 41. Ke3 {[%emt 0:00:32]} Ke6 {[%emt 0:00:23]} 42. Rh8 {[%emt 0:00:44]} Rg4 {[%emt 0:01:40]} 43. Re8 {[%emt 0:00:37]} Kd7 {[%emt 0:01:31]} 44. Ra8 {[%emt 0:00:26]} Bxg5+ {[%emt 0:00:20]} 45. Kf2 {[%emt 0:00:43]} Bh4+ {[%emt 0:01:48]} 46. Ke3 {[%emt 0:00:15]} Bg3 {[%emt 0:00:56]} 47. Rxa6 {[%emt 0:00:20]} Rc4 {[%emt 0:00:07]} 48. Kd3 {[%emt 0:00:47]} Rc6 {[%emt 0:00:03]} 49. Ra7+ {[%emt 0:00:13]} Rc7 {[%emt 0:00:04]} 50. Ra6 {[%emt 0:00:26]} Kc6 {[%emt 0:00:19]} 51. Ke3 {[%emt 0:00:55]} Bf4+ {[%emt 0:00:07]} 52. Ke2 {[%emt 0:00:07]} g5 {[%emt 0:00:52]} 53. Ra4 {[%emt 0:00:21]} Rd7 {[%emt 0:01:21]} 54. Re4 {[%emt 0:00:53]} f6 {[%emt 0:00:06]} 55. Rc4+ {[%emt 0:00:15]} Kb7 {[%emt 0:00:16]} 56. Ke1 {[%emt 0:00:25]} g4 {[%emt 0:00:15]} 57. Ng1 {[%emt 0:00:11]} f5 {[%emt 0:00:28]} 58. Ne2 {[%emt 0:00:16]} Be3 {[%emt 0:01:35]} 59. Ng3 {[%emt 0:00:20]} f4 {[%emt 0:00:14]} 60. Nf5 {[%emt 0:00:01]} Bc5 {[%emt 0:01:32]} 61. Re4 {[%emt 0:00:23]} g3 {[%emt 0:00:17]} 62. Nh4 {[%emt 0:01:02]} Rh7 {[%emt 0:01:09]} 63. Nf3 {[%emt 0:00:33]} g2 {[%emt 0:00:23]} 0-1